bitfinex/quotes_BTCUSD_20220105
["timestamp","ask_amount","ask_price","bid_price","bid_amount"]
[1641342364570,0.45212737,46042.0,46041.0,0.00220132]
[1641342364769,0.40774737,46042.0,46041.0,0.00220132]
[1641342365569,0.40974737,46042.0,46041.0,0.00220132]
[1641342365770,0.41064929,46042.0,46041.0,0.00220132]
[1641342366715,0.40864929,46042.0,46041.0,0.00220132]
[1641342367118,0.35864929,46042.0,46041.0,0.00220132]
[1641342367319,0.35864929,46042.0,46041.0,0.58220132]
[1641342367521,0.00410629,46042.0,46041.0,0.58220132]
[1641342368717,0.00210629,46042.0,46041.0,0.58220132]
[1641342369119,0.00210629,46042.0,46041.0,0.00220132]
[1641342369319,0.00210629,46042.0,46041.0,0.00820132]
[1641342369520,0.00410629,46042.0,46041.0,0.00820132]
[1641342370461,0.00410629,46042.0,46041.0,0.00220132]
[1641342370665,0.00330619,46042.0,46041.0,0.00220132]
[1641342371161,0.00330619,46042.0,46041.0,0.00520132]
[1641342371360,0.00330619,46042.0,46041.0,0.30520132]
[1641342371560,0.00530619,46042.0,46041.0,0.30520132]
[1641342372362,0.00530619,46042.0,46041.0,0.30220132]
[1641342372564,0.00330619,46042.0,46041.0,0.00220132]
[1641342373163,0.00330619,46042.0,46041.0,0.00820132]
[1641342373565,0.36184919,46042.0,46041.0,0.00820132]
[1641342373965,0.41184919,46042.0,46041.0,0.00820132]
[1641342374414,0.41184919,46042.0,46041.0,0.00220132]
[1641342374614,0.40984919,46042.0,46041.0,0.00220132]
[1641342375214,0.40984919,46042.0,46041.0,0.00320132]
[1641342375614,0.41184919,46042.0,46041.0,0.00320132]
[1641342376018,0.6610475,46042.0,46041.0,0.00320132]
[1641342376315,0.65414284,46042.0,46041.0,0.00320132]
[1641342376516,0.65382743,46042.0,46041.0,0.00220132]
[1641342377117,0.41184919,46042.0,46041.0,0.00220132]
[1641342377318,0.41184919,46042.0,46041.0,0.00320132]
[1641342377977,0.65248456,46042.0,46041.0,0.00320132]
[1641342378367,0.65048456,46042.0,46041.0,0.00220132]
[1641342378568,0.65248456,46042.0,46041.0,0.00220132]
[1641342379169,0.41184919,46042.0,46041.0,0.00320132]
[1641342379972,0.65839434,46042.0,46041.0,0.00320132]
[1641342380174,0.6583794,46042.0,46041.0,0.00320132]
[1641342380372,0.6583794,46042.0,46041.0,0.00220132]
[1641342380575,0.6563794,46042.0,46041.0,0.00220132]
[1641342381174,0.6563794,46042.0,46041.0,0.00320132]
[1641342381611,0.6583794,46042.0,46041.0,0.00320132]
[1641342382313,0.41184919,46042.0,46041.0,0.00320132]
[1641342382515,0.40984919,46042.0,46041.0,0.00220132]
[1641342382713,0.35984919,46042.0,46041.0,0.00220132]
[1641342383012,0.40984919,46042.0,46041.0,0.00220132]
[1641342383217,0.40984919,46042.0,46041.0,0.00520132]
[1641342383614,0.41184919,46042.0,46041.0,0.00520132]
[1641342384514,0.40984919,46042.0,46041.0,0.00220132]
[1641342385375,0.40984919,46042.0,46041.0,0.00620132]
[1641342385573,0.41184919,46042.0,46041.0,0.00620132]
[1641342386178,0.41184919,46042.0,46041.0,0.34620132]
[1641342386376,0.05530619,46042.0,46041.0,0.34620132]
[1641342386576,0.00330619,46042.0,46041.0,0.34220132]
[1641342386778,0.00330619,46042.0,46041.0,0.00220132]
[1641342387175,0.00330619,46042.0,46041.0,0.00620132]
[1641342387574,0.10730619,46042.0,46041.0,0.00620132]
[1641342388475,0.10730619,46042.0,46041.0,0.00220132]
[1641342388674,0.00330619,46042.0,46041.0,0.00220132]
[1641342389414,0.00330619,46042.0,46041.0,0.00720132]
[1641342389613,0.10730619,46042.0,46041.0,0.00720132]
[1641342390417,0.10730619,46042.0,46041.0,0.00220132]
[1641342390616,0.00330619,46042.0,46041.0,0.00220132]
[1641342391019,0.00330619,46042.0,46041.0,0.43220132]
[1641342391218,0.00330619,46042.0,46041.0,0.43620132]
[1641342391617,0.10730619,46042.0,46041.0,0.43620132]
[1641342392216,0.10730619,46042.0,46041.0,0.00620132]
[1641342392419,0.10730619,46042.0,46041.0,0.00220132]
[1641342392620,0.00330619,46042.0,46041.0,0.00220132]
[1641342393267,0.00330619,46042.0,46041.0,0.00620132]
[1641342393667,0.10730619,46042.0,46041.0,0.00620132]
[1641342394466,0.10730619,46042.0,46041.0,0.00220132]
[1641342394667,0.00330619,46042.0,46041.0,0.00220132]
[1641342395267,0.00330619,46042.0,46041.0,0.00620132]
[1641342395668,0.10730619,46042.0,46041.0,0.00620132]
[1641342396470,0.10730619,46042.0,46041.0,0.00220132]
[1641342396720,0.45354919,46042.0,46041.0,0.00220132]
[1641342396918,0.44854919,46042.0,46041.0,0.00220132]
[1641342397120,0.79854919,46042.0,46041.0,0.00220132]
[1641342397318,1.08959697,46042.0,46041.0,0.00220132]
[1641342397619,1.19359697,46042.0,46041.0,0.00220132]
[1641342397817,1.1814692,46042.0,46041.0,0.00220132]
[1641342398116,1.5414692,46042.0,46041.0,0.00220132]
[1641342398317,2.6924692,46042.0,46041.0,0.00220132]
[1641342398516,2.5884692,46042.0,46041.0,0.00220132]
[1641342399120,1.16,46041.0,46031.0,0.004]
[1641342399321,1.71167175,46032.0,46031.0,0.004]
[1641342399521,2.69529525,46032.0,46031.0,0.004]
[1641342399918,2.74529525,46032.0,46031.0,0.004]
[1641342400571,2.72682525,46032.0,46031.0,0.004]
[1641342401371,2.73782525,46032.0,46031.0,0.004]
[1641342401667,1.58682525,46032.0,46031.0,0.004]
[1641342402467,1.57582525,46032.0,46031.0,0.004]
[1641342403267,1.58782525,46032.0,46031.0,0.004]
[1641342404415,1.57582525,46032.0,46031.0,0.004]
[1641342404623,2.72682525,46032.0,46031.0,0.004]
[1641342405218,1.58682525,46032.0,46031.0,0.004]
[1641342405618,2.73782525,46032.0,46031.0,0.004]
[1641342406320,1.58682525,46032.0,46031.0,0.004]
[1641342406523,2.72682525,46032.0,46031.0,0.004]
[1641342406921,0.556543,46031.0,46030.0,0.00975073]
[1641342407119,2.18479687,46031.0,46030.0,0.00975073]
[1641342407319,1.03914136,46031.0,46030.0,0.00975073]
[1641342409177,0.83914136,46031.0,46030.0,0.00975073]
[1641342409373,0.85014136,46031.0,46030.0,0.00975073]
[1641342409571,0.57092719,46031.0,46030.0,0.00975073]
[1641342409771,0.81198607,46031.0,46030.0,0.00975073]
[1641342409973,0.57092719,46031.0,46030.0,0.00975073]
[1641342410472,0.55992719,46031.0,46030.0,0.00975073]
[1641342411273,0.57292719,46031.0,46030.0,0.00975073]
[1641342411720,0.67813184,46031.0,46030.0,0.00975073]
[1641342412617,0.57413184,46031.0,46030.0,0.00975073]
[1641342412817,0.56113184,46031.0,46030.0,0.00975073]
[1641342413217,0.57413184,46031.0,46030.0,0.00975073]
[1641342413618,0.67813184,46031.0,46030.0,0.00975073]
[1641342413820,1.12439329,46031.0,46030.0,0.00975073]
[1641342414020,1.12560213,46031.0,46030.0,0.00975073]
[1641342414222,2.27660213,46031.0,46030.0,0.00975073]
[1641342414620,2.15960213,46031.0,46030.0,0.00975073]
[1641342414819,2.51900213,46031.0,46030.0,0.00975073]
[1641342415119,2.94587555,46031.0,46030.0,0.00975073]
[1641342415384,2.95687555,46031.0,46030.0,0.00975073]
[1641342415580,2.63400213,46031.0,46030.0,0.00975073]
[1641342416585,2.51900213,46031.0,46030.0,0.00975073]
[1641342416786,2.52020232,46031.0,46030.0,0.00975073]
[1641342417183,3.02020232,46031.0,46030.0,0.00975073]
[1641342417384,3.03220232,46031.0,46030.0,0.00975073]
[1641342417584,3.13620232,46031.0,46030.0,0.00975073]
[1641342418586,2.52020232,46031.0,46030.0,0.00975073]
[1641342418784,1.12294087,46031.0,46030.0,0.00975073]
[1641342418987,1.06860117,46031.0,46030.0,0.00975073]
[1641342419224,1.08060117,46031.0,46030.0,0.00975073]
[1641342419619,1.18460117,46031.0,46030.0,0.00975073]
[1641342420020,0.57494784,46031.0,46030.0,0.00975073]
[1641342420221,0.47494784,46031.0,46030.0,0.00975073]
[1641342420522,0.37094784,46031.0,46030.0,0.00975073]
[1641342420718,0.01440484,46031.0,46030.0,0.79975073]
[1641342421119,0.00240484,46031.0,46030.0,0.79975073]
[1641342421318,0.07340484,46031.0,46030.0,0.01075073]
[1641342421520,0.17740484,46031.0,46030.0,0.01075073]
[1641342422619,0.00240484,46031.0,46030.0,0.00975073]
[1641342422878,0.00240484,46031.0,46030.0,0.41975073]
[1641342423275,0.02540484,46031.0,46030.0,0.42275073]
[1641342423677,0.12940484,46031.0,46030.0,1.76712862]
[1641342424682,0.12940484,46031.0,46030.0,1.76412862]
[1641342424683,0.00240484,46031.0,46030.0,1.76412862]
[1641342425277,0.00840484,46031.0,46030.0,1.77512862]
[1641342425676,0.01040484,46031.0,46030.0,1.77512862]
[1641342426719,0.00840484,46031.0,46030.0,1.77512862]
[1641342427119,0.00240484,46031.0,46030.0,1.76412862]
[1641342427322,0.00240484,46031.0,46030.0,1.77612862]
[1641342427520,0.00440484,46031.0,46030.0,1.77612862]
[1641342427921,0.00440484,46031.0,46030.0,1.53175073]
[1641342428519,0.00240484,46031.0,46030.0,1.51975073]
[1641342429322,0.00240484,46031.0,46030.0,1.53175073]
[1641342429626,0.00440484,46031.0,46030.0,1.53175073]
[1641342430672,0.00240484,46031.0,46030.0,1.53175073]
[1641342431072,0.00240484,46031.0,46030.0,1.51975073]
[1641342431272,0.00240484,46031.0,46030.0,1.53275073]
[1641342431672,0.00440484,46031.0,46030.0,1.53275073]
[1641342432574,0.00240484,46031.0,46030.0,1.51975073]
[1641342433373,0.00240484,46031.0,46030.0,1.53375073]
[1641342433574,0.00440484,46031.0,46030.0,1.89029373]
[1641342434621,0.00240484,46031.0,46030.0,1.89029373]
[1641342435121,0.00240484,46031.0,46030.0,1.87629373]
[1641342435321,0.00240484,46031.0,46030.0,1.89029373]
[1641342435522,0.00440484,46031.0,46030.0,1.89029373]
[1641342436626,0.00240484,46031.0,46030.0,1.87629373]
[1641342437430,0.00344612,46031.0,46030.0,1.89029373]
[1641342437628,0.00544612,46031.0,46030.0,1.89029373]
[1641342438673,0.00344612,46031.0,46030.0,1.87629373]
[1641342439275,0.00344612,46031.0,46030.0,1.89129373]
[1641342439675,0.00544612,46031.0,46030.0,1.89129373]
[1641342440476,0.00544612,46031.0,46030.0,1.87629373]
[1641342440678,0.00344612,46031.0,46030.0,1.87629373]
[1641342441176,0.00344612,46031.0,46030.0,1.51975073]
[1641342441376,0.00344612,46031.0,46030.0,1.53475073]
[1641342441619,0.00544612,46031.0,46030.0,1.53475073]
[1641342442422,0.00544612,46031.0,46030.0,0.43475073]
[1641342442627,0.00344612,46031.0,46030.0,0.00975073]
[1641342443423,0.00344612,46031.0,46030.0,0.02675073]
[1641342443624,0.00544612,46031.0,46030.0,1.06675073]
[1641342444426,0.00544612,46031.0,46030.0,0.76675073]
[1641342444726,0.00344612,46031.0,46030.0,0.74975073]
[1641342445375,0.00344612,46031.0,46030.0,0.02675073]
[1641342445576,0.00544612,46031.0,46030.0,0.02675073]
[1641342446179,0.04914612,46031.0,46030.0,0.02675073]
[1641342446578,0.04714612,46031.0,46030.0,0.00975073]
[1641342446880,0.29714612,46031.0,46030.0,0.00975073]
[1641342447080,0.70962446,46031.0,46030.0,0.00975073]
[1641342447280,0.72482737,46031.0,46030.0,0.00975073]
[1641342447479,1.97582737,46031.0,46030.0,0.00975073]
[1641342447682,0.82682737,46031.0,46030.0,0.00975073]
[1641342447879,0.93549218,46031.0,46030.0,0.00975073]
[1641342448282,1.2517804,46031.0,46030.0,0.00975073]
[1641342448679,1.2357804,46031.0,46030.0,0.00975073]
[1641342449324,1.2497804,46031.0,46030.0,0.00975073]
[1641342449524,2.4027804,46031.0,46030.0,0.00975073]
[1641342449724,1.2517804,46031.0,46030.0,0.00975073]
[1641342450528,1.2497804,46031.0,46030.0,0.00975073]
[1641342450729,1.2357804,46031.0,46030.0,0.00975073]
[1641342451127,2.3867804,46031.0,46030.0,0.00975073]
[1641342451328,1.2467804,46031.0,46030.0,0.00975073]
[1641342451727,1.2487804,46031.0,46030.0,0.00975073]
[1641342452528,1.2467804,46031.0,46030.0,0.00975073]
[1641342452984,0.93049218,46031.0,46030.0,0.00975073]
[1641342453282,0.93149218,46031.0,46030.0,0.00975073]
[1641342453678,0.93349218,46031.0,46030.0,0.00975073]
[1641342453979,2.08449218,46031.0,46030.0,0.00975073]
[1641342454579,2.07049218,46031.0,46030.0,0.00975073]
[1641342455280,2.08249218,46031.0,46030.0,0.00975073]
[1641342455679,2.08449218,46031.0,46030.0,0.00975073]
[1641342456720,2.07049218,46031.0,46030.0,0.00975073]
[1641342457323,2.08249218,46031.0,46030.0,0.00975073]
[1641342457725,2.08449218,46031.0,46030.0,0.00975073]
[1641342458525,2.07049218,46031.0,46030.0,0.00975073]
[1641342459328,2.08249218,46031.0,46030.0,0.00975073]
[1641342459527,2.08449218,46031.0,46030.0,0.00975073]
[1641342460388,0.93349218,46031.0,46030.0,0.00975073]
[1641342460585,0.91949218,46031.0,46030.0,0.00975073]
[1641342460988,0.50962446,46031.0,46030.0,0.00975073]
[1641342461190,0.45998912,46031.0,46030.0,0.00975073]
[1641342461387,0.48898912,46031.0,46030.0,1.01975073]
[1641342461586,0.03844612,46031.0,46030.0,1.01975073]
[1641342461787,0.03844612,46031.0,46030.0,0.00975073]
[1641342462288,0.03844612,46031.0,46030.0,0.40975073]
[1641342462487,0.03244612,46031.0,46030.0,0.00975073]
[1641342462688,0.00344612,46031.0,46030.0,0.00975073]
[1641342463291,0.04144612,46031.0,46030.0,0.00975073]
[1641342463688,0.04744612,46031.0,46030.0,0.00975073]
[1641342464135,0.2982495,46031.0,46030.0,0.00975073]
[1641342464335,0.7547925,46031.0,46030.0,0.00975073]
[1641342464535,0.8107925,46031.0,46030.0,0.00975073]
[1641342465137,0.9194665,46031.0,46030.0,0.00975073]
[1641342465338,2.0854665,46031.0,46030.0,0.00975073]
[1641342465539,2.0914665,46031.0,46030.0,0.00975073]
[1641342465736,0.9404665,46031.0,46030.0,0.00975073]
[1641342466539,0.9194665,46031.0,46030.0,0.00975073]
[1641342467140,2.0704665,46031.0,46030.0,0.00975073]
[1641342467339,0.9324665,46031.0,46030.0,0.00975073]
[1641342467540,0.8297925,46031.0,46030.0,0.00975073]
[1641342468583,0.8107925,46031.0,46030.0,0.00975073]
[1641342468880,1.9617925,46031.0,46030.0,0.00975073]
[1641342469278,1.9717925,46031.0,46030.0,0.00975073]
[1641342469679,1.9777925,46031.0,46030.0,0.00975073]
[1641342469979,0.8267925,46031.0,46030.0,0.00975073]
[1641342470579,0.8107925,46031.0,46030.0,0.00975073]
[1641342471383,0.8207925,46031.0,46030.0,0.00975073]
[1641342471625,0.8267925,46031.0,46030.0,0.00975073]
[1641342472628,1.9617925,46031.0,46030.0,0.00975073]
[1641342473029,0.8107925,46031.0,46030.0,0.00975073]
[1641342473427,0.8237925,46031.0,46030.0,0.00975073]
[1641342473628,0.8297925,46031.0,46030.0,0.00975073]
[1641342474629,0.8237925,46031.0,46030.0,0.00975073]
[1641342475030,0.8675293,46031.0,46030.0,0.00975073]
[1641342475229,2.0185293,46031.0,46030.0,0.00975073]
[1641342475480,2.0195293,46031.0,46030.0,0.00975073]
[1641342475679,2.0255293,46031.0,46030.0,0.00975073]
[1641342476680,0.8545293,46031.0,46030.0,0.00975073]
[1641342476881,2.0055293,46031.0,46030.0,0.00975073]
[1641342477380,2.0165293,46031.0,46030.0,0.00975073]
[1641342477581,2.0225293,46031.0,46030.0,0.00975073]
[1641342478481,2.0165293,46031.0,46030.0,0.00975073]
[1641342478681,2.0055293,46031.0,46030.0,0.00975073]
[1641342478883,2.0501393,46031.0,46030.0,0.00975073]
[1641342479135,2.0064025,46031.0,46030.0,0.00975073]
[1641342479334,2.0174025,46031.0,46030.0,0.00975073]
[1641342479831,2.0234025,46031.0,46030.0,0.00975073]
[1641342480437,1.9787925,46031.0,46030.0,0.00975073]
[1641342480631,1.9617925,46031.0,46030.0,0.00975073]
[1641342481432,1.9737925,46031.0,46030.0,0.00975073]
[1641342481639,1.9797925,46031.0,46030.0,0.00975073]
[1641342482534,1.9677925,46031.0,46030.0,0.00975073]
[1641342482735,1.9617925,46031.0,46030.0,0.00975073]
[1641342483177,2.3960525,46031.0,46030.0,0.00975073]
[1641342483373,3.0880825,46031.0,46030.0,0.00975073]
[1641342483575,3.70428758,46031.0,46030.0,0.00662573]
[1641342483771,3.16428758,46031.0,46030.0,0.00662573]
[1641342483971,1.69,46029.0,46028.0,0.00096149]
[1641342484175,5.21144525,46029.0,46028.0,0.00096149]
[1641342484371,5.21144525,46029.0,46021.0,0.004]
[1641342484372,0.74,46026.0,46021.0,0.004]
[1641342484573,0.74,46026.0,46001.0,0.004]
[1641342484574,1.96722879,46022.0,46001.0,0.004]
[1641342484772,0.915943,46019.0,46001.0,0.004]
[1641342484972,1.020573,46019.0,46018.0,5.26e-05]
[1641342485171,2.37907214,46019.0,46018.0,5.26e-05]
[1641342485372,2.44443108,46019.0,46018.0,5.26e-05]
[1641342486621,2.43343108,46019.0,46018.0,5.26e-05]
[1641342487327,0.2,46011.0,46008.0,0.67517166]
[1641342487525,0.2,46009.0,46008.0,0.67517166]
[1641342487723,0.2437,46009.0,46008.0,0.67517166]
[1641342487923,0.2937,46009.0,46008.0,0.67517166]
[1641342488124,0.35164441,46009.0,46008.0,0.67517166]
[1641342488425,1.00255745,46009.0,46008.0,0.67517166]
[1641342488624,1.35910045,46009.0,46008.0,0.67517166]
[1641342488823,1.1175785,46009.0,46008.0,0.67517166]
[1641342489023,1.16516963,46009.0,46008.0,0.67517166]
[1641342489429,1.17916963,46009.0,46008.0,0.67517166]
[1641342489625,0.86977854,46009.0,46008.0,0.67517166]
[1641342490127,0.82218741,46009.0,46008.0,0.67517166]
[1641342490399,0.26564441,46009.0,46008.0,0.67517166]
[1641342490598,0.15164441,46009.0,46008.0,0.67517166]
[1641342490797,0.1437,46009.0,46008.0,0.67517166]
[1641342491399,0.1827,46009.0,46008.0,0.67517166]
[1641342492599,0.1437,46009.0,46008.0,0.67517166]
[1641342492800,0.0437,46009.0,46008.0,0.67517166]
[1641342493001,0.0437,46009.0,46008.0,1.15517166]
[1641342493399,0.0567,46009.0,46008.0,1.16117166]
[1641342494541,0.0567,46009.0,46008.0,1.15517166]
[1641342494738,0.0437,46009.0,46008.0,1.15517166]
[1641342495740,0.0437,46009.0,46008.0,0.67517166]
[1641342495939,0.0437,46009.0,46008.0,1.00517166]
[1641342496338,0.0437,46009.0,46008.0,1.00417166]
[1641342496940,0.0437,46009.0,46008.0,1.80417166]
[1641342497143,0.0437,46009.0,46008.0,1.00417166]
[1641342497342,0.0527,46009.0,46008.0,1.01317166]
[1641342497541,0.0527,46009.0,46008.0,0.68317166]
[1641342497980,0.0527,46009.0,46008.0,1.20317166]
[1641342498782,0.0437,46009.0,46008.0,1.19417166]
[1641342499386,0.0527,46009.0,46008.0,1.20417166]
[1641342500186,0.0527,46009.0,46008.0,0.68417166]
[1641342500785,0.0437,46009.0,46008.0,1.20417166]
[1641342501185,9.0437,46009.0,46008.0,0.67417166]
[1641342501385,9.459243,46009.0,46008.0,0.68417166]
[1641342501628,9.461243,46009.0,46008.0,0.68417166]
[1641342502631,9.450243,46009.0,46008.0,0.67417166]
[1641342502832,9.44948337,46009.0,46008.0,0.67417166]
[1641342503432,9.47170347,46009.0,46008.0,0.67917166]
[1641342503633,9.47370347,46009.0,46008.0,0.67917166]
[1641342504735,9.47170347,46009.0,46008.0,0.67917166]
[1641342505380,9.46370347,46009.0,46008.0,0.68317166]
[1641342505679,9.46570347,46009.0,46008.0,0.68317166]
[1641342506683,9.46370347,46009.0,46008.0,0.68317166]
[1641342506985,9.45170347,46009.0,46008.0,0.67417166]
[1641342507383,9.46470347,46009.0,46008.0,0.68217166]
[1641342507588,9.46670347,46009.0,46008.0,0.68217166]
[1641342508485,9.46470347,46009.0,46008.0,0.68217166]
[1641342508685,9.45170347,46009.0,46008.0,0.67417166]
[1641342509330,9.46470347,46009.0,46008.0,0.68217166]
[1641342509535,9.51470347,46009.0,46008.0,0.68217166]
[1641342509731,9.51670347,46009.0,46008.0,0.68217166]
[1641342510531,9.46470347,46009.0,46008.0,0.68217166]
[1641342510730,9.46470347,46009.0,46008.0,0.67417166]
[1641342510731,9.4024631,46009.0,46008.0,0.67417166]
[1641342510931,9.3587631,46009.0,46008.0,0.67417166]
[1641342511132,9.3587631,46009.0,46008.0,0.67235666]
[1641342511446,9.3687631,46009.0,46008.0,0.68235666]
[1641342511630,9.3707631,46009.0,46008.0,0.68235666]
[1641342511833,7.10479159,46009.0,46008.0,2.435926]
[1641342512041,7.10479159,46009.0,46008.0,2.530926]
[1641342512042,2.92468859,46009.0,46008.0,2.530926]
[1641342512231,0.65174,46025.0,46024.0,0.00120208]
[1641342512431,0.50606154,46025.0,46024.0,0.00120208]
[1641342512632,0.86260454,46025.0,46024.0,0.00120208]
[1641342512891,0.86260454,46025.0,46024.0,0.92486247]
[1641342513087,0.50606154,46025.0,46024.0,0.92486247]
[1641342513491,0.54706154,46025.0,46024.0,0.92986247]
[1641342513888,0.54706154,46025.0,46024.0,0.98418682]
[1641342514387,0.54706154,46025.0,46024.0,0.06052643]
[1641342514788,0.50606154,46025.0,46024.0,0.05552643]
[1641342515390,0.52606154,46025.0,46024.0,0.95352643]
[1641342516288,0.52606154,46025.0,46024.0,1.2051753]
[1641342516733,0.52606154,46025.0,46024.0,2.2017183]
[1641342517133,0.02,46025.0,46024.0,2.2017183]
[1641342517333,0.07079655,46030.0,46027.0,0.054312]
[1641342517635,0.07079655,46030.0,46029.0,0.00128881]
[1641342518035,0.07079655,46030.0,46029.0,1.7873725]
[1641342518633,0.07079655,46030.0,46029.0,2.11573224]
[1641342519432,0.07079655,46030.0,46029.0,2.12673224]
[1641342519834,0.07079655,46030.0,46029.0,1.87064855]
[1641342520404,0.07079655,46030.0,46029.0,1.54228881]
[1641342520605,0.07079655,46030.0,46029.0,1.53128881]
[1641342521500,0.07079655,46030.0,46029.0,1.54228881]
[1641342522501,0.07079655,46030.0,46029.0,0.01228881]
[1641342522703,0.07079655,46030.0,46029.0,0.00128881]
[1641342523503,0.07079655,46030.0,46029.0,1.27328881]
[1641342523705,0.07079655,46030.0,46029.0,0.01328881]
[1641342524535,0.07079655,46030.0,46029.0,0.012]
[1641342524734,0.07079655,46030.0,46027.0,0.00094028]
[1641342525334,0.09479655,46030.0,46027.0,0.00494028]
[1641342525536,0.27864864,46029.0,46027.0,0.00494028]
[1641342525737,0.356543,46028.0,46027.0,0.00494028]
[1641342525934,0.356543,46028.0,46027.0,0.05926728]
[1641342526235,0.27864864,46029.0,46027.0,0.05926728]
[1641342526634,0.27864864,46029.0,46027.0,0.05526728]
[1641342527236,0.27864864,46029.0,46027.0,0.054327]
[1641342527437,0.35364864,46029.0,46027.0,0.058327]
[1641342527636,0.30364864,46029.0,46027.0,0.058327]
[1641342527880,0.35364864,46029.0,46027.0,0.058327]
[1641342528579,0.35364864,46029.0,46027.0,0.054327]
[1641342528580,0.32864864,46029.0,46027.0,0.054327]
[1641342529180,0.00120472,46028.0,46027.0,0.054327]
[1641342529381,0.00120472,46028.0,46027.0,0.058327]
[1641342529779,0.00240498,46028.0,46027.0,0.058327]
[1641342530681,0.00240498,46028.0,46027.0,1.584327]
[1641342531482,0.00240498,46028.0,46027.0,1.595327]
[1641342532536,0.00240498,46028.0,46027.0,1.584327]
[1641342533336,0.00240498,46028.0,46027.0,1.596327]
[1641342534138,0.00240498,46028.0,46027.0,1.59759644]
[1641342534338,0.00240498,46028.0,46027.0,1.69759644]
[1641342534638,0.00240498,46028.0,46027.0,1.68559644]
[1641342535486,0.00240498,46028.0,46027.0,0.06859644]
[1641342536585,0.00240498,46028.0,46027.0,0.054327]
[1641342536887,0.28594418,46028.0,46027.0,0.054327]
[1641342537385,0.28594418,46028.0,46027.0,0.060327]
[1641342538087,0.33594418,46028.0,46027.0,0.006]
[1641342538288,0.63539383,46028.0,46027.0,0.006]
[1641342538486,1.58961683,46028.0,46027.0,0.006]
[1641342538685,1.68961683,46028.0,46025.0,0.00093935]
[1641342538892,1.876543,46026.0,46025.0,0.00093935]
[1641342539144,2.35354527,46026.0,46025.0,0.00093935]
[1641342539343,2.37344602,46026.0,46025.0,0.00093935]
[1641342540146,2.42778902,46026.0,46025.0,0.00093935]
[1641342540744,3.56478902,46026.0,46025.0,0.00093935]
[1641342541450,3.57978902,46026.0,46025.0,0.00093935]
[1641342542445,0.05,46025.0,46019.0,0.01217906]
[1641342542745,0.84751449,46020.0,46019.0,0.01217906]
[1641342542987,0.94121449,46020.0,46019.0,0.01217906]
[1641342543187,1.34775749,46020.0,46019.0,0.01217906]
[1641342543388,1.36475749,46020.0,46019.0,0.01217906]
[1641342543586,1.31041349,46020.0,46019.0,0.01217906]
[1641342544186,1.31041349,46020.0,46013.0,1.74390092]
[1641342544387,0.47338829,46019.0,46013.0,1.74390092]
[1641342544585,0.0437,46018.0,46013.0,1.7560802]
[1641342544988,0.0437,46018.0,46014.0,0.054341]
[1641342545385,0.0867,46018.0,46014.0,0.054341]
[1641342545585,0.1367,46018.0,46014.0,0.054341]
[1641342545787,0.1867,46018.0,46014.0,0.05528088]
[1641342546188,0.43349702,46018.0,46014.0,0.00093988]
[1641342546390,0.53349702,46018.0,46014.0,0.00093988]
[1641342546644,1.726543,46015.0,46014.0,0.00093988]
[1641342546838,3.10415083,46015.0,46014.0,0.00093988]
[1641342547036,2.05829309,46015.0,46014.0,0.00093988]
[1641342547237,3.20929309,46015.0,46014.0,0.00093988]
[1641342547437,3.22129309,46015.0,46014.0,0.00093988]
[1641342548738,3.20929309,46015.0,46014.0,0.00093988]
[1641342549339,3.22129309,46015.0,46014.0,0.00093988]
[1641342549539,0.89899526,46015.0,46014.0,0.00093988]
[1641342549740,1.15886027,46015.0,46014.0,0.00093988]
[1641342550385,1.50886027,46015.0,46014.0,0.00093988]
[1641342550587,1.14686027,46015.0,46014.0,0.00093988]
[1641342551487,1.15886027,46015.0,46014.0,0.00093988]
[1641342552288,1.15886027,46015.0,46008.0,0.66735666]
[1641342552489,0.76024345,46010.0,46008.0,0.66735666]
[1641342552690,0.95966253,46010.0,46008.0,0.66735666]
[1641342552889,1.21122013,46010.0,46008.0,0.66735666]
[1641342553290,1.21983898,46010.0,46008.0,0.66735666]
[1641342553492,1.23183898,46010.0,46008.0,0.66735666]
[1641342553693,0.97166253,46010.0,46008.0,0.66735666]
[1641342553892,1.02601953,46010.0,46008.0,0.66735666]
[1641342554136,0.97166253,46010.0,46008.0,0.66735666]
[1641342554537,0.68685695,46010.0,46008.0,0.66735666]
[1641342554735,0.1937,46010.0,46008.0,0.66735666]
[1641342555135,0.0437,46010.0,46008.0,0.66735666]
[1641342555534,0.019,46010.0,46008.0,0.66735666]
[1641342555735,0.02020073,46010.0,46008.0,0.77604766]
[1641342556733,0.00120073,46010.0,46008.0,0.77604766]
[1641342557135,0.24387172,46010.0,46008.0,0.77604766]
[1641342557437,0.29587172,46010.0,46008.0,0.77604766]
[1641342559283,0.24387172,46010.0,46008.0,0.77604766]
[1641342559486,0.25987172,46010.0,46008.0,0.77604766]
[1641342560583,0.24387172,46010.0,46008.0,0.77604766]
[1641342561384,0.25987172,46010.0,46008.0,0.77604766]
[1641342562735,0.24387172,46010.0,46008.0,0.77604766]
[1641342563435,0.27587172,46010.0,46008.0,0.77604766]
[1641342563833,0.27587172,46010.0,46008.0,2.49792492]
[1641342564734,0.24387172,46010.0,46008.0,2.49792492]
[1641342564934,0.00120073,46010.0,46008.0,2.49792492]
[1641342565388,0.01820073,46010.0,46008.0,2.49792492]
[1641342565589,0.01820073,46010.0,46009.0,0.5377536]
[1641342565898,0.00820073,46010.0,46009.0,0.5377536]
[1641342566690,0.04601697,46011.0,46009.0,0.5377536]
[1641342566691,0.00231697,46011.0,46009.0,0.5377536]
[1641342566889,0.00231697,46011.0,46010.0,0.2701922]
[1641342567095,0.00231697,46011.0,46010.0,0.356543]
[1641342567489,0.00831697,46011.0,46010.0,0.356543]
[1641342568090,0.00831697,46011.0,46010.0,1.856543]
[1641342568290,0.00831697,46011.0,46010.0,1.5]
[1641342568491,0.00831697,46011.0,46009.0,2.65351538]
[1641342568693,0.00231697,46011.0,46009.0,2.65351538]
[1641342569134,0.00231697,46011.0,46010.0,0.27268217]
[1641342569533,0.00231697,46011.0,46010.0,0.6132345]
[1641342570736,0.00231697,46011.0,46010.0,0.9697775]
[1641342573183,0.00231697,46011.0,46009.0,0.59498018]
[1641342573381,0.00231697,46011.0,46009.0,0.59371161]
[1641342573382,0.04601697,46011.0,46009.0,0.59371161]
[1641342573580,0.04601697,46011.0,46009.0,0.53936761]
[1641342573780,0.04601697,46011.0,46010.0,1.71641532]
[1641342574181,0.3438235,46011.0,46010.0,1.71641532]
[1641342574480,0.3438235,46011.0,46009.0,0.53936761]
[1641342575079,0.04601697,46011.0,46009.0,0.53936761]
[1641342575279,0.04601697,46011.0,46009.0,2.22767645]
[1641342575480,0.05601697,46011.0,46009.0,2.22767645]
[1641342576738,0.04601697,46011.0,46009.0,2.22767645]
[1641342577442,0.06701697,46011.0,46009.0,2.22767645]
[1641342578339,0.02331697,46011.0,46009.0,2.22767645]
[1641342578539,0.02331697,46011.0,46009.0,2.28201945]
[1641342578738,0.00231697,46011.0,46009.0,2.28201945]
[1641342579539,0.00931697,46011.0,46009.0,2.28201945]
[1641342580785,0.00231697,46011.0,46009.0,2.28201945]